bitfinex/quotes_ETHUSD_20251226
["timestamp","ask_amount","ask_price","bid_price","bid_amount"]
[1766782586413,0.9125,2936.4,2935.6,0.03406458]
[1766782586614,0.9125,2936.4,2935.5,4.53188082]
[1766782587191,0.9125,2936.4,2935.5,1.12535311]
[1766782587518,0.9125,2936.3,2935.6,0.03406458]
[1766782588318,0.9125,2936.3,2935.5,1.12535311]
[1766782588512,0.9125,2936.3,2935.6,3.40644743]
[1766782589212,0.9125,2936.3,2935.7,0.03406342]
[1766782590306,4.30010403,2936.8,2935.7,0.03406342]
[1766782590307,0.9125,2936.7,2935.7,0.03406342]
[1766782590618,0.9125,2936.6,2935.7,4.2376118]
[1766782592706,0.9125,2936.6,2935.7,0.03406342]
[1766782593216,0.9125,2936.6,2935.5,3.40751409]
[1766782593617,0.9125,2936.6,2935.6,3.40645593]
[1766782594217,4.3178131,2936.6,2935.5,3.40754357]
[1766782594418,0.9125,2936.5,2935.5,3.40754357]
[1766782594613,0.9125,2936.4,2935.5,4.52870818]
[1766782595185,0.9125,2936.4,2935.5,1.12216461]
[1766782595385,0.9125,2936.4,2935.5,0.001]
[1766782595589,0.9125,2936.4,2935.5,3.40756927]
[1766782596328,0.9125,2936.4,2935.5,0.001]
[1766782596711,0.9125,2936.3,2935.6,0.001]
[1766782597024,3.40557386,2936.4,2935.6,0.001]
[1766782597025,0.9125,2936.1,2935.6,0.001]
[1766782598518,0.9125,2936.5,2935.6,0.03506458]
[1766782601234,0.9125,2936.5,2935.6,3.4415215]
[1766782601399,0.9125,2936.5,2935.6,7.83685477]
[1766782601603,0.9145,2936.8,2935.9,7.80142993]
[1766782601798,0.9125,2936.7,2936.0,0.03405994]
[1766782602017,0.9125,2936.7,2935.8,4.30118736]
[1766782602332,0.9125,2936.7,2935.9,0.0340611]
[1766782606039,0.9125,2936.7,2935.9,0.0350611]
[1766782608734,0.9369,2936.6,2935.9,0.001]
[1766782609038,0.9369,2936.4,2935.9,0.0350611]
[1766782611138,0.9369,2936.4,2935.6,0.001]
[1766782611319,0.9369,2936.4,2935.7,3.40626727]
[1766782611717,0.9369,2936.4,2935.8,0.03406226]
[1766782612441,0.9369,2936.4,2935.7,3.40626727]
[1766782612642,0.9369,2936.4,2935.7,4.17723981]
[1766782612949,0.9369,2936.4,2935.8,0.03406226]
[1766782614349,0.0360611,2936.8,2935.8,0.03406226]
[1766782614653,0.9369,2936.7,2935.9,0.001]
[1766782614813,0.9709611,2936.6,2935.9,0.001]
[1766782615013,0.9369,2936.3,2935.9,0.001]
[1766782622420,0.9369,2936.7,2935.9,0.001]
[1766782622637,0.0340611,2936.6,2935.9,0.001]
[1766782622817,0.9709611,2936.6,2935.9,0.001]
[1766782631229,0.9729611,2936.6,2935.9,0.001]
[1766782632162,0.9369,2936.5,2935.9,0.001]
[1766782632469,0.9709611,2936.4,2935.9,0.001]
[1766782633628,0.002,2936.6,2935.9,0.001]
[1766782636028,0.9024,2936.6,2935.9,0.001]
[1766782638268,0.9024,2936.8,2935.9,0.001]
[1766782638474,0.9024,2936.8,2936.0,0.34412782]
[1766782639357,0.002,2936.6,2935.9,0.001]
[1766782639560,0.9004,2936.5,2935.9,0.001]
[1766782640048,0.002,2936.6,2935.9,0.001]
[1766782640931,0.9024,2936.6,2935.9,0.0350611]
[1766782642865,0.9024,2936.6,2935.9,3.44116672]
[1766782643067,0.9024,2936.6,2936.0,0.43361667]
[1766782643370,0.9024,2936.6,2936.1,0.03405878]
[1766782645963,0.002,2936.8,2936.1,0.03405878]
[1766782646163,0.002,2937.2,2936.3,4.39533327]
[1766782646347,0.002,2937.2,2936.4,0.0340553]
[1766782646544,0.002,2937.2,2936.5,0.53243886]
[1766782646841,0.9024,2937.2,2936.6,0.03405298]
[1766782649956,0.002,2937.3,2936.7,4.39288336]
[1766782650151,0.002,2937.3,2936.8,0.03405066]
[1766782651091,0.002,2937.5,2936.9,4.39288336]
[1766782651261,0.002,2937.5,2937.0,1.24725504]
[1766782656362,0.002,2937.6,2937.0,1.24725504]
[1766782656558,0.9024,2937.6,2936.5,0.53243886]
[1766782656790,0.9004,2937.4,2936.6,3.40518883]
[1766782656980,0.002,2937.6,2936.5,8.33073078]
[1766782656981,0.93444834,2937.3,2936.7,0.6748552]
[1766782657158,0.93444834,2937.3,2936.8,0.03405066]
[1766782659388,0.93444834,2937.3,2936.8,3.43908238]
[1766782659572,0.9004,2937.3,2936.8,3.43908238]
[1766782659888,0.9024,2937.6,2936.8,8.3644046]
[1766782660084,0.9024,2937.6,2937.0,4.39288336]
[1766782660262,0.002,2937.6,2937.1,0.03404718]
[1766782660787,0.002,2937.6,2936.9,4.42693286]
[1766782660997,0.002,2937.6,2937.0,0.03404834]
[1766782661171,0.002,2937.6,2937.0,0.70890354]
[1766782661794,0.002,2937.6,2937.1,0.03404718]
[1766782665190,0.002,2937.6,2937.1,0.92904718]
[1766782666101,0.9809,2937.6,2937.1,0.92904718]
[1766782666288,0.03404834,2937.5,2937.1,0.92904718]
[1766782666670,0.9809,2937.6,2937.1,0.92904718]
[1766782674099,0.9789,2937.4,2937.1,0.92904718]
[1766782675683,0.002,2937.6,2937.1,0.92904718]
[1766782676073,0.03604834,2937.6,2937.1,0.92904718]
[1766782676402,1.01494834,2937.6,2937.1,0.92904718]
[1766782680314,0.002,2937.8,2937.1,5.32193054]
[1766782680673,1.01494834,2937.8,2937.1,5.32193054]
[1766782682001,0.9809,2937.8,2937.1,5.32193054]
[1766782682371,0.03404834,2937.7,2937.1,0.92904718]
[1766782682907,0.9809,2937.8,2937.1,0.92904718]
[1766782683380,0.002,2938.0,2937.4,4.39288336]
[1766782683587,1.01494834,2938.2,2937.5,0.03404255]
[1766782683781,1.01494834,2938.2,2937.6,0.895]
[1766782683981,1.01494834,2938.2,2937.7,0.03404023]
[1766782683982,0.002,2938.2,2937.7,0.03404023]
[1766782684193,0.002,2938.2,2937.8,0.895]
[1766782684194,0.9789,2938.1,2937.8,0.895]
[1766782684409,1.01294834,2938.0,2937.8,0.895]
[1766782685588,0.9789,2938.0,2937.8,0.895]
[1766782686391,0.002,2938.2,2937.8,0.895]
[1766782686591,0.03604834,2938.4,2937.8,1.3249134]
[1766782687006,1.01494834,2938.4,2937.8,1.3249134]
[1766782689118,1.01494834,2938.4,2937.9,0.03403791]
[1766782689490,1.01494834,2938.4,2937.8,1.35895247]
[1766782689713,1.01494834,2938.4,2937.8,0.92903907]
[1766782690488,1.01494834,2938.4,2937.8,0.895]
[1766782692117,1.01494834,2938.4,2937.8,0.896]
[1766782693717,0.9789,2938.2,2937.8,0.001]
[1766782693920,0.9789,2938.0,2937.8,0.895]
[1766782694090,1.01294834,2937.9,2937.8,0.895]
[1766782695397,0.9789,2937.9,2936.4,4.39288336]
[1766782695600,0.9903,2937.7,2937.1,0.894]
[1766782695921,0.9903,2937.5,2937.2,0.03404603]
[1766782700619,0.9903,2937.5,2937.3,0.894]
[1766782701430,0.9903,2937.8,2937.3,0.894]
[1766782701614,0.9903,2937.8,2937.4,0.03404371]
[1766782702327,0.03404834,2937.7,2937.4,0.03404371]
[1766782703426,1.02434834,2937.7,2937.4,0.03404371]
[1766782704693,1.02434834,2937.7,2937.3,0.894]
[1766782706519,1.02434834,2937.7,2937.1,0.001]
[1766782706718,0.9903,2937.5,2937.2,0.895]
[1766782706894,1.02434834,2937.5,2937.2,0.895]
[1766782707298,1.02434834,2937.5,2937.1,0.001]
[1766782708301,0.9903,2937.5,2937.3,0.001]
[1766782711539,0.9903,2937.5,2937.1,0.001]
[1766782711707,0.9903,2937.3,2937.0,0.001]
[1766782711903,0.9903,2937.3,2936.8,0.001]
[1766782712344,0.9903,2937.3,2936.8,0.03505066]
[1766782712715,1.02434834,2937.3,2936.8,0.03505066]
[1766782713015,0.9903,2937.3,2936.8,0.001]
[1766782713538,0.9903,2937.3,2936.8,0.03505066]
[1766782713709,0.9903,2937.3,2936.8,0.001]
[1766782714234,0.9903,2937.3,2936.8,0.03505066]
[1766782714425,0.03404834,2937.6,2936.9,0.0536]
[1766782714612,0.9903,2937.6,2937.0,0.03404834]
[1766782714813,1.02434834,2937.5,2937.0,0.03404834]
[1766782715526,1.02434834,2937.5,2936.9,0.0536]
[1766782716239,1.02434834,2937.5,2937.0,0.03404834]
[1766782718723,1.02434834,2937.5,2936.9,0.001]
[1766782728763,0.9379,2937.4,2936.8,0.001]
[1766782728939,0.9379,2937.2,2936.8,0.001]
[1766782729124,0.03404834,2937.1,2936.8,0.001]
[1766782730660,0.03404834,2937.1,2936.6,0.03505298]
[1766782730661,0.9379,2937.0,2936.6,0.03505298]
[1766782730831,0.97194834,2936.9,2936.6,0.001]
[1766782731036,0.97194834,2936.9,2936.3,0.03405646]
[1766782731253,0.97194834,2936.9,2936.1,0.09165878]
[1766782731561,4.39220328,2937.3,2936.1,0.09165878]
[1766782731562,0.9379,2937.3,2936.3,0.0566]
[1766782731732,0.9379,2937.1,2936.4,0.0906553]
[1766782733770,0.9379,2937.1,2936.4,0.0340553]
[1766782733926,0.9379,2936.9,2936.2,0.09065762]
[1766782734261,0.43422937,2937.2,2936.2,0.0566]
[1766782734262,0.97194834,2936.8,2936.2,0.0566]
[1766782734438,0.97194834,2936.8,2936.3,0.03405646]
[1766782734628,0.97194834,2936.8,2936.1,0.001]
[1766782734629,0.97194834,2936.8,2936.1,0.03505878]
[1766782735555,0.97194834,2936.8,2936.1,0.001]
[1766782740239,0.9379,2936.7,2936.1,0.001]
[1766782740443,0.9379,2937.1,2936.2,0.0566]
[1766782740629,0.9379,2936.9,2936.3,0.09065646]
[1766782741459,0.9379,2936.7,2936.3,0.03405646]
[1766782742029,0.03404834,2936.9,2936.3,0.03405646]
[1766782742233,0.97194834,2936.9,2936.3,0.03405646]
[1766782743237,4.834e-05,2936.9,2936.4,4.39220328]
[1766782743573,0.9399,2937.5,2936.6,0.0226]
[1766782743574,0.002,2937.5,2936.6,0.0226]
[1766782743752,0.002,2937.5,2936.5,0.81724201]
[1766782743753,0.002,2937.5,2936.8,0.0226]
[1766782743928,0.002,2937.5,2937.0,0.0226]
[1766782744364,0.9399,2937.5,2936.9,0.0340495]
[1766782744530,0.9399,2937.5,2936.7,0.9176]
[1766782744871,0.9379,2937.4,2936.6,0.895]
[1766782745536,0.9379,2937.4,2936.5,0.895]
[1766782745857,0.9379,2937.4,2936.4,3.428119]
[1766782745858,0.9379,2937.4,2936.4,0.0226]
[1766782746071,0.9379,2937.1,2936.0,0.001]
[1766782746255,7.24495857,2937.5,2936.4,0.0226]
[1766782746256,1.76118794,2937.4,2936.4,0.0226]
[1766782746459,0.9379,2937.4,2936.6,0.0226]
[1766782746764,0.9379,2937.4,2936.7,0.03405182]
[1766782747062,0.9379,2937.4,2936.6,0.03405298]
[1766782747633,3.40440611,2937.4,2936.6,0.03405298]
[1766782747840,0.9379,2937.2,2936.6,0.03405298]
[1766782748053,0.9379,2937.2,2936.5,0.895]
[1766782748647,0.9379,2937.2,2936.1,0.0236]
[1766782748855,0.9379,2937.2,2936.3,0.0226]
[1766782749042,0.9379,2937.2,2936.4,0.0566553]
[1766782749356,0.9379,2937.4,2936.5,0.0226]
[1766782749555,0.9379,2937.4,2936.7,0.0226]
[1766782750070,0.9379,2937.0,2936.4,0.34623462]
[1766782750570,0.9379,2937.0,2936.4,1.24123462]
[1766782750863,0.9379,2937.0,2936.5,0.03405414]
[1766782751063,0.9379,2937.0,2936.4,1.24123462]
[1766782751286,0.9379,2937.0,2936.2,0.0226]
[1766782751877,0.9379,2936.9,2936.2,0.03405762]
[1766782752081,0.9379,2936.9,2936.1,0.03505878]
[1766782752404,0.9399,2937.5,2936.7,0.0206]
[1766782752549,0.9399,2937.5,2936.8,0.03405066]
[1766782753177,0.9399,2937.5,2936.8,0.05465066]
[1766782753372,0.9399,2937.5,2936.9,0.0340495]
[1766782753565,0.9379,2937.4,2936.8,0.03405066]
[1766782753746,0.9379,2937.4,2936.7,0.03405182]
[1766782754272,0.9379,2937.4,2936.2,0.0206]
[1766782754273,0.9571,2937.3,2936.2,0.0206]
[1766782754576,3.84071534,2937.5,2936.1,0.03505878]
[1766782754577,0.9571,2937.0,2936.1,0.03505878]
[1766782754795,0.9571,2936.7,2936.1,0.001]
[1766782755089,0.9571,2936.7,2935.8,0.001]
[1766782756384,11.20233674,2936.8,2935.6,0.001]
[1766782756385,0.9571,2936.4,2935.6,0.001]
[1766782756686,3.40564656,2936.3,2935.6,0.001]
[1766782756888,0.9571,2936.2,2935.6,0.001]
[1766782757071,1.73393931,2936.1,2935.6,0.001]
[1766782757247,0.9571,2936.0,2935.6,0.001]
[1766782758209,4.39220328,2935.8,2935.3,0.001]
[1766782758344,0.9571,2935.7,2935.1,0.0306]
[1766782758548,0.9571,2935.7,2935.5,0.001]
[1766782759250,0.9571,2936.1,2935.5,0.001]
[1766782759450,0.9571,2935.9,2935.5,0.001]
[1766782761172,0.83936003,2935.9,2935.5,0.001]
[1766782761502,3.40554768,2936.4,2935.5,0.001]
[1766782761503,0.9571,2936.3,2935.5,0.001]
[1766782763202,3.40576255,2936.2,2935.5,0.001]
[1766782763402,0.9571,2936.1,2935.5,0.001]
[1766782763701,0.9571,2936.1,2935.3,0.03406806]
[1766782763702,0.9571,2935.9,2935.1,0.001]
[1766782764303,0.43628626,2936.0,2935.1,0.1494]
[1766782764505,0.9571,2936.0,2935.1,0.18347038]
[1766782765287,0.9571,2936.0,2935.2,0.1484]
[1766782765502,0.9571,2936.0,2935.4,0.1484]
[1766782766082,0.9591,2936.0,2935.4,0.1484]
[1766782766285,0.9591,2936.0,2935.1,0.03507038]
[1766782766489,0.9571,2935.9,2935.1,0.03507038]
[1766782766693,0.9571,2935.9,2935.1,0.46900307]
[1766782767007,0.9571,2935.9,2935.1,0.61740307]
[1766782767329,0.9571,2935.9,2935.2,0.1484]
[1766782767504,0.9571,2935.9,2935.3,0.03406806]
[1766782767989,0.9571,2935.9,2935.2,0.1484]
[1766782768191,0.9571,2935.9,2935.3,0.03406806]
[1766782768987,0.9571,2935.8,2935.3,0.03406806]
[1766782769187,0.9571,2935.8,2935.1,0.001]
[1766782769414,0.9571,2935.7,2935.1,0.001]
[1766782770393,0.9571,2935.7,2935.1,0.1494]
[1766782770593,0.9571,2935.7,2935.1,0.001]
[1766782771119,0.9571,2935.6,2935.1,0.001]
[1766782771510,0.9571,2935.5,2935.1,0.001]
[1766782771717,0.9571,2935.5,2934.9,0.001]
[1766782772318,0.9571,2935.5,2934.5,0.03407735]
[1766782772995,3.40647292,2935.6,2934.0,0.1504]
[1766782772996,0.9571,2935.3,2934.0,0.1504]
[1766782773212,0.9571,2935.3,2934.1,0.034082]
[1766782773411,0.9571,2935.1,2934.1,0.001]
[1766782774621,0.9571,2935.1,2934.1,0.1514]
[1766782774796,0.9571,2934.9,2934.1,0.1514]
[1766782775426,4.36442554,2934.9,2934.1,0.1514]
[1766782775637,0.9571,2934.8,2934.1,0.1514]
[1766782776696,0.9571,2934.8,2934.1,0.185482]
[1766782777426,3.40672376,2935.4,2934.2,3.40801724]
[1766782777601,0.9571,2935.3,2934.4,0.1504]
[1766782777805,0.9571,2935.3,2934.5,0.03407735]
[1766782778726,0.9571,2935.3,2934.1,0.001]
[1766782778904,0.9571,2935.3,2934.1,0.1514]
[1766782779107,6.81344752,2935.4,2934.1,0.1514]
[1766782779108,0.9571,2935.1,2934.2,0.03408083]
[1766782779308,0.9571,2935.1,2934.1,0.001]
[1766782779616,0.9571,2935.0,2934.1,0.035082]
[1766782780441,0.9571,2934.7,2934.1,0.035082]
[1766782780627,0.9571,2934.7,2934.1,0.001]
[1766782781830,0.9571,2934.6,2934.1,0.001]
[1766782782220,0.9571,2934.6,2933.9,0.03508432]
[1766782782963,0.9571,2934.6,2933.9,0.18548432]
[1766782783365,0.9571,2934.6,2933.9,0.03508432]
[1766782783563,0.9571,2934.6,2933.9,0.001]
[1766782783778,0.9571,2934.4,2933.9,0.001]
[1766782785069,0.9571,2934.4,2933.4,0.1504]
[1766782785259,0.9571,2934.4,2933.6,0.1504]
[1766782785633,0.9571,2934.4,2933.7,0.18448664]
[1766782787063,0.9571,2934.4,2933.9,0.002]
[1766782787263,0.9016,2934.2,2933.9,0.002]
[1766782787471,0.9016,2934.2,2933.2,0.1534]
[1766782787676,0.9016,2934.1,2933.2,0.001]
[1766782787871,0.9016,2934.1,2932.9,0.1534]
[1766782787872,0.9016,2934.1,2932.8,3.82210269]
[1766782788072,0.9016,2934.1,2932.7,5.001]
[1766782788073,0.9016,2933.9,2932.7,5.1544]
[1766782788242,0.9016,2933.9,2932.8,0.1534]
[1766782788641,0.9016,2933.9,2932.9,0.1534]
[1766782788875,0.9016,2933.9,2933.0,0.18749478]
[1766782789580,0.9016,2933.9,2932.7,0.1544]
[1766782789753,0.9016,2933.7,2932.8,0.1874971]
[1766782790073,0.9016,2933.7,2932.8,3.59719179]
[1766782790280,0.9016,2934.4,2933.1,0.1534]
[1766782790440,0.9016,2934.5,2933.2,0.18749245]
[1766782793365,0.9016,2934.3,2933.2,0.1534]
[1766782793570,0.9016,2934.1,2933.2,0.1534]
[1766782793877,0.9016,2934.1,2932.9,0.03409594]
[1766782794081,0.9016,2933.9,2933.1,0.002]
[1766782794392,0.9016,2933.9,2933.1,0.1554]
[1766782794550,0.9016,2933.9,2933.2,0.03409245]
[1766782794743,0.9016,2933.9,2933.1,0.1554]
[1766782794946,0.9016,2933.9,2933.2,0.03409245]
[1766782795170,0.9016,2933.9,2933.1,0.1554]
[1766782795344,0.9016,2933.9,2933.1,3.56475207]
[1766782795550,0.9016,2933.9,2933.2,0.18749245]
[1766782796670,0.9016,2933.9,2933.2,0.1534]
[1766782797150,0.9016,2933.9,2933.1,0.002]
[1766782797659,0.17966,2934.0,2933.1,0.1554]
[1766782797849,0.9016,2934.2,2933.3,0.1534]
[1766782798176,0.9016,2934.2,2933.4,0.18749013]
[1766782798372,4.36214336,2935.2,2933.4,0.18749013]
[1766782798373,0.9016,2934.9,2933.4,0.18749013]
[1766782798561,0.95516281,2935.2,2933.4,0.18749013]
[1766782798562,0.9026,2934.8,2933.4,0.18749013]
[1766782799452,0.9026,2934.8,2933.7,0.1534]
[1766782799656,0.001,2934.8,2933.9,0.1534]
[1766782799856,0.001,2934.8,2934.1,0.1534]
[1766782800175,0.9016,2934.7,2933.8,0.8504962]
[1766782800345,0.9016,2934.7,2933.9,0.1534]
[1766782800551,0.001,2934.8,2934.1,0.1534]
[1766782800873,0.001,2934.8,2933.8,0.6970962]
[1766782800874,0.001,2934.8,2934.3,0.1534]
[1766782801067,0.001,2934.8,2934.4,0.03407851]
[1766782801270,0.001,2934.8,2934.3,0.1534]
[1766782801676,0.001,2934.8,2934.3,0.07573854]
[1766782802377,0.03412685,2934.9,2934.5,0.0757]
[1766782802578,1.07406978,2935.8,2934.7,0.0747]
[1766782802579,0.9016,2935.4,2934.7,0.0747]
[1766782802882,0.03412685,2935.3,2934.7,0.0747]
[1766782803250,0.9016,2935.4,2934.7,0.0747]
[1766782803456,0.03412685,2935.3,2934.7,0.0747]
[1766782803673,0.03412685,2935.3,2934.8,0.03407387]
[1766782804353,0.9016,2935.7,2934.9,0.0747]
[1766782804552,0.9016,2935.7,2934.3,6.24438994]
[1766782804553,0.9016,2935.7,2935.0,0.07467155]
[1766782805561,0.9016,2935.7,2935.0,3.48174028]
[1766782805802,0.9016,2935.7,2935.1,0.0406]
[1766782806159,0.9016,2935.7,2935.2,0.03406922]
[1766782806365,0.9016,2935.7,2935.1,0.07467038]
[1766782806580,0.9036,2936.0,2935.1,0.07467038]
[1766782806764,0.17986,2935.9,2935.2,0.0406]
[1766782807749,0.9016,2935.8,2935.0,0.03407155]
[1766782808116,0.9016,2935.8,2935.0,0.07467155]
[1766782809084,0.001,2935.7,2935.0,0.07467155]
[1766782809287,0.001,2935.7,2935.1,0.0406]
[1766782809487,0.001,2935.7,2935.2,0.03406922]
[1766782809690,0.9016,2935.6,2934.9,0.03407271]
[1766782809861,0.9016,2935.6,2934.9,0.07467271]
[1766782811004,0.9016,2935.6,2934.6,0.0406]
[1766782811205,0.9016,2935.6,2934.5,4.30264676]
[1766782811375,0.9016,2935.4,2934.5,4.30264676]
[1766782811574,0.9016,2935.4,2934.6,0.0406]
[1766782812921,0.9036,2936.0,2934.8,0.0396]
[1766782813234,0.002,2936.0,2935.1,6.81407788]
[1766782813392,0.9016,2936.3,2935.3,0.0376]
[1766782813579,0.9016,2936.3,2935.5,0.0376]
[1766782813877,0.9016,2936.3,2935.7,0.0376]
[1766782814082,0.9016,2936.3,2935.8,0.03406226]
[1766782814416,0.9016,2936.3,2935.9,0.0340611]
[1766782814612,0.9016,2936.3,2935.7,0.0376]
[1766782815417,0.9016,2936.3,2935.7,3.44389472]
[1766782815623,0.9613,2936.7,2935.8,0.03406226]
[1766782815777,0.9613,2936.7,2935.9,0.0376]
[1766782817011,0.9613,2936.7,2936.0,0.07165994]
[1766782817578,0.002,2936.3,2936.0,0.07165994]
[1766782819183,0.001,2936.9,2936.0,0.07165994]
[1766782819184,0.001,2936.9,2936.1,0.0376]
[1766782819500,0.001,2936.9,2936.2,0.07855762]
[1766782819684,0.001,2936.9,2936.2,3.43977525]
[1766782819893,0.001,2936.9,2936.3,0.38847753]
[1766782820209,0.001,2936.9,2936.4,0.0785553]
[1766782820408,0.002,2937.1,2936.5,0.0435]
[1766782822401,0.002,2937.1,2936.3,0.34397753]
[1766782822402,0.9613,2937.0,2936.3,0.34397753]
[1766782822602,0.9613,2937.0,2936.3,0.895]
[1766782823199,0.9613,2937.0,2936.0,5.0]
[1766782823390,0.9613,2937.0,2936.1,0.03405878]
[1766782823590,0.9613,2937.0,2935.9,0.0340611]
[1766782823898,0.9613,2936.9,2935.9,0.0340611]
[1766782824100,3.4049323,2937.0,2935.8,0.0435]
[1766782824101,0.9613,2936.7,2935.8,0.0435]
[1766782824288,0.9613,2936.7,2935.9,0.0340611]
[1766782824490,0.9613,2936.7,2936.5,0.001]
[1766782826117,0.43662323,2936.8,2936.5,0.001]
[1766782826118,1.39792323,2936.8,2936.5,0.001]
[1766782826322,0.9613,2936.8,2936.5,0.001]
[1766782829437,0.9633,2937.1,2936.5,0.001]
[1766782829937,0.9613,2937.0,2936.5,0.001]
[1766782831603,0.002,2937.1,2936.5,0.0445]
[1766782832128,0.9633,2937.1,2936.5,0.0445]
[1766782833409,0.002,2937.1,2936.7,0.0435]
[1766782835905,0.9633,2937.1,2936.6,0.03405298]
[1766782836104,0.9633,2937.1,2936.5,0.03505414]
[1766782836367,0.9633,2937.1,2936.5,0.001]
[1766782838544,0.002,2937.2,2936.6,0.0435]
[1766782838715,0.002,2937.2,2936.8,0.0435]
[1766782839809,0.002,2937.2,2936.8,3.44855127]
[1766782840027,0.002,2937.1,2936.9,0.0340495]
[1766782840825,0.002,2937.1,2936.8,0.07755066]
[1766782841229,0.002,2937.2,2936.9,0.0435]
[1766782841528,0.002,2937.5,2936.9,0.0435]
[1766782841728,0.002,2937.5,2936.8,3.7873761]
[1766782841729,0.002,2937.5,2937.0,0.07354834]
[1766782842623,0.9613,2937.7,2937.1,0.0395]
[1766782843872,0.002,2937.8,2937.1,0.0395]
[1766782844153,0.9613,2937.7,2937.1,0.38534556]
[1766782844472,0.9613,2937.7,2937.2,0.03404603]
[1766782845129,0.002,2937.8,2937.3,0.0375]
[1766782846435,0.9744,2937.8,2937.3,0.0375]
[1766782846756,0.9744,2937.8,2937.2,0.03404603]
[1766782847555,0.9744,2937.8,2937.2,0.07154603]
[1766782847764,0.9744,2937.8,2937.2,0.45395565]
[1766782849333,0.9744,2937.8,2937.3,0.0375]
[1766782849658,0.002,2937.8,2937.3,0.0375]
[1766782850562,0.002,2937.8,2937.4,0.03404371]
[1766782851075,0.002,2938.2,2937.5,0.0375]
[1766782851237,0.002,2938.2,2937.3,0.895]
[1766782851238,0.002,2938.2,2937.7,0.0355]
[1766782851655,0.9744,2938.2,2937.7,0.0355]
[1766782856482,0.9724,2938.1,2937.4,0.03404371]
[1766782856693,0.9724,2938.1,2937.3,0.03404487]
[1766782857267,0.9724,2938.1,2937.2,0.03404603]
[1766782857950,0.9724,2938.1,2937.2,0.06954603]
[1766782858146,0.9724,2938.1,2937.2,0.50647114]
[1766782859381,0.9724,2938.1,2937.3,0.0355]
[1766782859686,0.9724,2938.1,2937.4,0.03404371]
[1766782859866,0.9724,2938.1,2937.4,0.0355]
[1766782860066,0.9744,2938.1,2937.4,0.0355]
[1766782860254,0.9724,2938.0,2937.4,0.0355]
[1766782862155,0.9724,2938.0,2937.3,0.03404487]
[1766782862356,0.002,2938.1,2937.3,0.03404487]
[1766782862357,0.002,2938.1,2937.4,0.0355]
[1766782862563,0.9744,2938.1,2937.4,0.0355]
[1766782866759,0.9744,2938.1,2937.3,3.43852827]
[1766782866760,0.9744,2938.1,2937.5,0.06954255]
[1766782866963,0.9744,2938.1,2937.5,0.41694515]
[1766782867283,0.002,2938.1,2937.6,0.0355]
[1766782869967,0.9744,2938.1,2937.4,0.03504371]
[1766782870379,0.9744,2938.1,2937.4,0.07054371]
[1766782870586,0.9744,2938.1,2937.4,0.03504371]
[1766782871400,0.9724,2938.0,2937.4,0.03504371]
[1766782875374,0.9724,2938.0,2937.4,0.07054371]
[1766782875709,0.002,2938.1,2937.4,0.07054371]
[1766782875710,0.002,2938.1,2937.5,0.0355]
[1766782876018,0.9175,2938.1,2937.5,0.0355]
[1766782876883,0.9175,2938.1,2937.6,0.03404139]
[1766782877879,0.9175,2938.1,2937.6,0.06954139]
[1766782878084,0.9175,2938.1,2937.7,0.03404023]
[1766782878628,0.9175,2938.1,2937.6,0.06954139]
[1766782878789,0.9175,2938.1,2937.6,0.0355]
[1766782882820,0.9175,2938.1,2937.5,0.03404255]
[1766782884719,0.9175,2938.1,2937.5,0.03504255]
[1766782885625,0.9175,2938.1,2937.4,0.895]
[1766782885626,0.9155,2938.0,2937.4,0.895]
[1766782885783,0.9155,2938.0,2937.4,0.001]
[1766782886119,0.9155,2938.0,2937.2,0.894]
[1766782886781,0.9155,2938.0,2937.3,0.03404487]
[1766782892493,0.9155,2938.0,2937.3,0.03504487]
[1766782892721,0.9155,2937.9,2937.3,0.03504487]
[1766782900263,0.9155,2937.9,2937.3,0.07254487]
[1766782900631,0.9175,2937.9,2937.3,0.07254487]
[1766782901667,0.9175,2937.9,2937.3,0.03504487]
[1766782902239,0.002,2937.9,2937.4,0.0375]
[1766782902864,0.9175,2937.9,2937.5,0.03404255]
[1766782903054,0.9175,2937.9,2937.6,0.03404139]
[1766782903055,0.002,2937.9,2937.6,0.03404139]
[1766782903366,0.9175,2938.1,2937.6,0.0375]
[1766782905361,0.9175,2938.1,2937.6,0.38508712]
[1766782905570,0.9175,2938.1,2937.7,0.03404023]
[1766782906438,0.9175,2938.1,2937.7,0.06954023]
[1766782906439,0.002,2938.1,2937.7,0.06954023]
[1766782908147,0.002,2938.1,2937.7,0.03404023]
[1766782909462,0.9147,2938.1,2937.7,0.03404023]
[1766782909863,0.9147,2938.1,2937.5,0.06954255]
[1766782911678,0.9147,2938.1,2937.6,0.03404139]
[1766782913176,0.9127,2937.7,2936.7,3.47567305]
[1766782913377,0.9127,2937.5,2936.7,0.0705]
[1766782913675,3.40409323,2937.7,2936.5,3.40634441]
[1766782913676,0.9127,2937.1,2936.5,0.001]
[1766782913843,0.9127,2936.9,2936.5,0.03505414]
[1766782917084,0.94672685,2937.3,2936.5,0.17755414]
[1766782923594,0.94672685,2937.3,2936.5,7.97446627]
[1766782923793,0.9127,2937.3,2936.6,0.94004663]
[1766782923958,0.9127,2937.3,2936.7,0.03405182]
[1766782924166,0.9127,2936.7,2936.4,0.001]
[1766782924395,0.9127,2936.7,2936.3,0.001]
[1766782924396,0.57298734,2936.6,2936.3,0.001]
[1766782924598,0.895,2937.5,2936.3,0.001]
[1766782924599,0.9127,2937.4,2936.5,0.1786]
[1766782924773,0.9127,2937.2,2936.6,0.01704567]
[1766782925096,3.40433006,2937.5,2936.6,0.01704567]
[1766782925097,0.04255898,2937.1,2936.6,0.01704567]
[1766782925276,0.9127,2937.1,2936.6,0.01704567]